Workbook

Sheet Ⅰ-1-가.발전회사별
B1: 시점 | C1: 2023 | D1: 2022 | E1: 2022 | F1: 2022 | G1: 2022 | H1: 2022 | I1: 2022 | J1: 2022 | K1: 2022 | L1: 2022 | M1: 2022 | N1: 2022 | O1: 2022 | P1: 2022 | Q1: 2022 | R1: 2022 | S1: 2022 | T1: 2022 | U1: 2022 | V1: 2022 | W1: 2022 | X1: 2022 | Y1: 2022 | Z1: 2022 | AA1: 2022
B2: 설비형식별 | C2: 합계 | D2: 원자력 | E2: 기력 | F2: ▶유연탄 | G2: ▶무연탄 | H2: ▶중유 | I2: ▶LNG | J2: 복합화력 | K2: ▶경유 | L2: ▶LNG | M2: 내연력 | N2: ▶중유 | O2: ▶경유 | P2: 집단에너지 | Q2: ▶유연탄 | R2: ▶유류 | S2: ▶LNG | T2: ▶기타 | U2: 양수 | V2: 신재생 | W2: ▶수력 | X2: ▶태양광 | Y2: ▶풍력 | Z2: ▶기타 | AA2: 기타
A3: 용도및회사별 | C3: 합계 | D3: 원자력 | E3: 기력 | F3: ▶유연탄 | G3: ▶무연탄 | H3: ▶중유 | I3: ▶LNG | J3: 복합화력 | K3: ▶경유 | L3: ▶LNG | M3: 내연력 | N3: ▶중유 | O3: ▶경유 | P3: 집단에너지 | Q3: ▶유연탄 | R3: ▶유류 | S3: ▶LNG | T3: ▶기타 | U3: 양수 | V3: 신재생 | W3: ▶수력 | X3: ▶태양광 | Y3: ▶풍력 | Z3: ▶기타 | AA3: 기타
A4: 합계 | C4: 139909906.6 | D4: =D5 -> 24650000 | E4: =E5 -> 39308658 | F4: 37508658 | G4: 400000 | I4: 1400000 | J4: 34038252 | K4: 465800 | L4: 33572452 | M4: 136550 | N4: 40000 | O4: 96550 | P4: 9821006 | Q4: 1259224 | R4: 108700 | S4: 8365082 | T4: 88000 | U4: 4700000 | V4: 31395507.01 | W4: 1816996.4 | X4: 23947073.61 | Y4: 2151362 | Z4: 3480075 | AA4: 370935
A5: 사업용발전설비 | C5: 138193366.6 | D5: =SUM(D6:D25) -> 24650000 | E5: =SUM(E6:E25) -> 39308658 | F5: 37508658 | G5: 400000 | I5: 1400000 | J5: =SUM(J6:J25) -> 34038252 | K5: 465800 | L5: 33572452 | M5: 136550 | N5: 40000 | O5: 96550 | P5: 9821006 | Q5: 1259224 | R5: 108700 | S5: 8365082 | T5: 88000 | U5: 4700000 | V5: 31395507.01 | W5: 1816996.4 | X5: 23947073.61 | Y5: 2151362 | Z5: 3480075 | AA5: 370935
A6: 한국전력㈜ | C6: 96810 | M6: =SUM(N6:O6) -> 96550 | O6: 96550 | V6: =SUM(W6:Z6) -> 1273 | W6: 700 | X6: 573
A7: 한수원㈜ | C7: 30028838.71 | D7: 24650000 | U7: 4700000 | V7: 704151.23 | W7: 606800 | X7: 77551.23 | Z7: 19800
A8: 남동발전㈜ | C8: 9278180.63 | E8: =SUM(F8:I8) -> 7868600 | F8: 7868600 | J8: =SUM(K8:L8) -> 922064 | L8: 922064 | V8: 571998.24 | W8: 17599 | X8: 98189.24 | Y8: 79300 | Z8: 376910
A9: 중부발전㈜ | C9: 10775105 | E9: 6106058 | F9: 6106058 | J9: 3779527 | L9: 3779527 | M9: 40000 | N9: 40000 | P9: =SUM(Q9:T9) -> 530441 | S9: 530441 | V9: 309029 | W9: 15086 | X9: 20703 | Y9: 32800 | Z9: 240440 | AA9: 10000
A10: 서부발전㈜ | C10: 11502989.11 | E10: 7500000 | F10: 6100000 | I10: 1400000 | J10: 3386900 | L10: 3386900 | P10: 350460 | S10: 350460 | V10: 634409.15 | W10: 7200 | X10: 47979.15 | Y10: 34000 | Z10: 545230
A11: 남부발전㈜ | C11: 11477485.75 | E11: 6044000 | F11: 6044000 | J11: 5060845 | L11: 5060845 | V11: 389955.255 | W11: 2810 | X11: 38685.255 | Y11: 39500 | Z11: 308960
A12: 동서발전㈜ | C12: 9562487.365 | E12: 6440000 | F12: 6040000 | G12: 400000 | J12: 2971900 | L12: 2971900 | V12: 166886.865 | X12: 81106.865 | Y12: 3000 | Z12: 82780
A13: 포스코에너지㈜ | C13: 3193169 | J13: 3176000 | L13: 3176000 | V13: 14469 | X13: 14469
A14: GS EPS㈜ | C14: 2471016.6 | J14: 2261750 | L14: 2261750 | V14: 209266.6 | X14: 4266.6 | Z14: 205000
A15: 지역난방공사 | C15: 2284570.33 | P15: 2276534 | R15: 82400 | S15: 2194134 | V15: 25614.12 | X15: 8114.12 | Z15: 17500 | AA15: 40440
A16: 고성그린파워㈜ | C16: 2086638 | E16: 2080000 | F16: 2080000 | V16: 6638 | W16: 5000 | X16: 1638
A17: 씨지앤 | C17: 1980900 | J17: 1855500 | K17: 465800 | L17: 1389700 | V17: 125400 | Z17: 125400
A18: 동두천드림파워㈜ | C18: 1718661.83 | J18: 1716800 | L18: 1716800 | V18: 1861.83 | X18: 1861.83
A19: 파주에너지서비스 | C19: 1715000 | J19: 1695200 | L19: 1695200 | V19: 19800 | Z19: 19800
A20: 포천파워㈜ | C20: 1450664 | J20: 1450000 | L20: 1450000 | V20: 664 | X20: 664
A21: GS 파워㈜ | C21: 1440837.12 | P21: 1413380 | S21: 1413380 | V21: 28451.68 | W21: 1030 | X21: 5011.68 | Y21: 7050 | Z21: 15360
A22: 수자원공사 | C22: 1377488.03 | V22: 1381984.895 | W22: 1094457 | X22: 25527.895 | Y22: 8000 | Z22: 254000
A23: ㈜GS동해전력 | C23: 1199973.2 | E23: 1190000 | F23: 1190000 | V23: 9973.2 | W23: 4872 | X23: 5101.2
A24: 강릉에코파워(주) | C24: 1040000 | E24: 2080000 | F24: 2080000 | V24: 0
A25: 기타 | C25: 33512551.94 | J25: 5761766 | L25: 5761766 | P25: 5250191 | Q25: 1259224 | R25: 26300 | S25: 3876667 | T25: 88000 | V25: 26793680.94 | W25: 61442.4 | X25: 23515631.54 | Y25: 1947712 | Z25: 1268895 | AA25: 320495
A26: 구역전기설비

Sheet Ⅰ-1-나.회원사별
B1: 시점 | C1: 2023 | D1: 2022 | E1: 2022 | F1: 2022 | G1: 2022 | H1: 2022 | I1: 2022 | J1: 2022 | K1: 2022 | L1: 2022 | M1: 2022 | N1: 2022 | O1: 2022 | P1: 2022 | Q1: 2022 | R1: 2022 | S1: 2022 | T1: 2022 | U1: 2022 | V1: 2022 | W1: 2022 | X1: 2022 | Y1: 2022 | Z1: 2022 | AA1: 2022
B2: 설비형식별 | C2: 합계 | D2: 원자력 | E2: 기력 | F2: ▶유연탄 | G2: ▶무연탄 | H2: ▶중유 | I2: ▶LNG | J2: 복합화력 | K2: ▶경유 | L2: ▶LNG | M2: 내연력 | N2: ▶중유 | O2: ▶경유 | P2: 집단에너지 | Q2: ▶유연탄 | R2: ▶유류 | S2: ▶LNG | T2: ▶기타 | U2: 양수 | V2: 신재생 | W2: ▶수력 | X2: ▶태양광 | Y2: ▶풍력 | Z2: ▶기타 | AA2: 기타
A3: 회원사별 | C3: 합계 | D3: 원자력 | E3: 기력 | F3: ▶유연탄 | G3: ▶무연탄 | H3: ▶중유 | I3: ▶LNG | J3: 복합화력 | K3: ▶경유 | L3: ▶LNG | M3: 내연력 | N3: ▶중유 | O3: ▶경유 | P3: 집단에너지 | Q3: ▶유연탄 | R3: ▶유류 | S3: ▶LNG | T3: ▶기타 | U3: 양수 | V3: 신재생 | W3: ▶수력 | X3: ▶태양광 | Y3: ▶풍력 | Z3: ▶기타 | AA3: 기타
A4: 합계 | C4: 144420908 | D4: 24650000 | E4: 39308658 | F4: 37508658 | G4: 400000 | I4: 1400000 | J4: 34038252 | K4: 465800 | L4: 33572452 | M4: 136550 | N4: 40000 | O4: 96550 | P4: 9821006 | Q4: 1259224 | R4: 108700 | S4: 8365082 | T4: 88000 | U4: 4700000 | V4: 31395507.01 | W4: 1816996.4 | X4: 23947073.61 | Y4: 2151362 | Z4: 3480075 | AA4: 370935
A5: 정회원 | C5: 128897936.9 | D5: 24650000 | E5: 39308658 | F5: 37508658 | G5: 400000 | I5: 1400000 | J5: 34038252 | K5: 465800 | L5: 33572452 | M5: 40000 | N5: 40000 | P5: 9821006 | Q5: 1259224 | R5: 108700 | S5: 8365082 | T5: 88000 | U5: 4700000 | V5: 15972318.93 | W5: 1807824.4 | X5: 8554952.533 | Y5: 2151243 | Z5: 3458299 | AA5: 367702
A6: 한수원㈜ | C6: 30051541.81 | D6: 24650000 | U6: 4700000 | V6: 701541.81 | W6: 606775 | X6: 74966.81 | Z6: 19800
A7: 남동발전㈜ | C7: 9362492.24 | E7: 7868600 | F7: 7868600 | J7: 922064 | L7: 922064 | V7: 571828.24 | W7: 17599 | X7: 98019.24 | Y7: 79300 | Z7: 376910
A8: 중부발전㈜ | C8: 10774704.8 | E8: 6106058 | F8: 6106058 | J8: 3779527 | L8: 3779527 | M8: 40000 | N8: 40000 | P8: 530441 | S8: 530441 | V8: 308678.8 | W8: 15086 | X8: 20352.8 | Y8: 32800 | Z8: 240440 | AA8: 10000
A9: 서부발전㈜ | C9: 11870874.15 | E9: 7500000 | F9: 6100000 | I9: 1400000 | J9: 3386900 | L9: 3386900 | P9: 350460 | S9: 350460 | V9: 633514.15 | W9: 7200 | X9: 47084.15 | Y9: 34000 | Z9: 545230
A10: 남부발전㈜ | C10: 11494366.26 | E10: 6044000 | F10: 6044000 | J10: 5060845 | L10: 5060845 | V10: 389521.255 | W10: 2810 | X10: 38251.255 | Y10: 39500 | Z10: 308960
A11: 동서발전㈜ | C11: 9578689.865 | E11: 6440000 | F11: 6040000 | G11: 400000 | J11: 2971900 | L11: 2971900 | V11: 166789.865 | X11: 81009.865 | Y11: 3000 | Z11: 82780
A12: 포스코인터내셔널㈜ | C12: 3190469 | J12: 3176000 | L12: 3176000 | V12: 14469 | X12: 14469
A13: GS EPS㈜ | C13: 2471016.6 | J13: 2261750 | L13: 2261750 | V13: 209266.6 | X13: 4266.6 | Z13: 205000
A14: 지역난방공사 | C14: 2341868.8 | P14: 2276534 | R14: 82400 | S14: 2194134 | V14: 24894.8 | X14: 7394.8 | Z14: 17500 | AA14: 40440
A15: 고성그린파워㈜ | C15: 2086638 | E15: 2080000 | F15: 2080000 | V15: 6638 | W15: 5000 | X15: 1638
A16: 씨지앤 | C16: 1980900 | J16: 1855500 | K16: 465800 | L16: 1389700 | V16: 125400 | Z16: 125400
A17: 동두천드림파워㈜ | C17: 1718661.83 | J17: 1716800 | L17: 1716800 | V17: 1861.83 | X17: 1861.83
A18: 파주에너지서비스 | C18: 1715000 | J18: 1695200 | L18: 1695200 | V18: 19800 | Z18: 19800
A19: 포천파워㈜ | C19: 1450664 | J19: 1450000 | L19: 1450000 | V19: 664 | X19: 664
A20: GS 파워㈜ | C20: 1441831.68 | P20: 1413380 | S20: 1413380 | V20: 28451.68 | W20: 1030 | X20: 5011.68 | Y20: 7050 | Z20: 15360
A21: 수자원공사 | C21: 1381646.7 | V21: 1381646.7 | W21: 1094457 | X21: 25189.7 | Y21: 8000 | Z21: 254000
A22: ㈜GS동해전력 | C22: 1199973.2 | E22: 1190000 | F22: 1190000 | V22: 9973.2 | W22: 4872 | X22: 5101.2
A23: 강릉에코파워(주) | C23: 2080000 | E23: 2080000 | F23: 2080000
A24: 기타 | C24: 22706598 | J24: 5761766 | L24: 5761766 | P24: 5250191 | Q24: 1259224 | R24: 26300 | S24: 3876667 | T24: 88000 | V24: 11377379 | W24: 52995.4 | X24: 8129671.603 | Y24: 1947593 | Z24: 1247119 | AA24: 317262
A25: 비회원 | C25: 15522971.07 | M25: 96550 | O25: 96550 | V25: 15423188.07 | W25: 9172 | X25: 15392121.07 | Y25: 119 | Z25: 21776 | AA25: 3233
A26: 한국전력㈜ | C26: 97823 | M26: 96550 | O26: 96550 | V26: 1273 | W26: 700 | X26: 573
A27: 기타 | C27: 15425148.07 | V27: 15421915.07 | W27: 8472 | X27: 15391548.07 | Y27: 119 | Z27: 21776 | AA27: 3233

Sheet Ⅰ-1-다.급전방식별
B1: 시점 | C1: 2023 | D1: 2022 | E1: 2022 | F1: 2022 | G1: 2022 | H1: 2022 | I1: 2022 | J1: 2022 | K1: 2022 | L1: 2022 | M1: 2022 | N1: 2022 | O1: 2022 | P1: 2022 | Q1: 2022 | R1: 2022 | S1: 2022 | T1: 2022 | U1: 2022 | V1: 2022 | W1: 2022 | X1: 2022 | Y1: 2022 | Z1: 2022 | AA1: 2022
B2: 설비형식별 | C2: 합계 | D2: 원자력 | E2: 기력 | F2: ▶유연탄 | G2: ▶무연탄 | H2: ▶중유 | I2: ▶LNG | J2: 복합화력 | K2: ▶경유 | L2: ▶LNG | M2: 내연력 | N2: ▶중유 | O2: ▶경유 | P2: 집단에너지 | Q2: ▶유연탄 | R2: ▶유류 | S2: ▶LNG | T2: ▶기타 | U2: 양수 | V2: 신재생 | W2: ▶수력 | X2: ▶태양광 | Y2: ▶풍력 | Z2: ▶기타 | AA2: 기타
A3: 급전방식별 | C3: 합계 | D3: 원자력 | E3: 기력 | F3: ▶유연탄 | G3: ▶무연탄 | H3: ▶중유 | I3: ▶LNG | J3: 복합화력 | K3: ▶경유 | L3: ▶LNG | M3: 내연력 | N3: ▶중유 | O3: ▶경유 | P3: 집단에너지 | Q3: ▶유연탄 | R3: ▶유류 | S3: ▶LNG | T3: ▶기타 | U3: 양수 | V3: 신재생 | W3: ▶수력 | X3: ▶태양광 | Y3: ▶풍력 | Z3: ▶기타 | AA3: 기타
A4: 합계 | C4: 144420908 | D4: 24650000 | E4: =SUM(E7:E11,E15,E22:E23) -> 39308658 | F4: 36468658 | G4: 400000 | I4: 1400000 | J4: 34038252 | K4: 96550 | L4: 33572452 | M4: 136550 | N4: 40000 | O4: 96550 | P4: 9821006 | Q4: 1259224 | R4: 171300 | S4: 7400650 | T4: 88000 | U4: 4700000 | V4: 31395507.01 | W4: 1812423.4 | X4: 23947073.61 | Y4: 2151362 | Z4: 3480075 | AA4: 370935
A5: 중앙급전발전기 | C5: 113599002 | D5: 24650000 | E5: 39308658 | F5: 36468658 | G5: 400000 | I5: 1400000 | J5: 34038252 | L5: 33572452 | M5: 40000 | N5: 40000 | P5: 8555782 | R5: 171300 | S5: 7394650 | T5: 88000 | U5: 4700000 | V5: 2306310 | W5: 1569980 | Z5: 736330
A6: 한수원㈜ | C6: 29945380 | D6: 24650000 | U6: 4700000 | V6: 595380 | W6: 595380
A7: 남동발전㈜ | C7: 8790664 | E7: 7868600 | F7: 7868600 | J7: 922064 | L7: 922064
A8: 중부발전㈜ | C8: 10646026 | E8: 6106058 | F8: 6106058 | J8: 3779527 | L8: 3779527 | M8: 40000 | N8: 40000 | P8: 530441 | S8: 530441 | V8: 190000 | Z8: 190000
A9: 서부발전㈜ | C9: 11583690 | E9: 7500000 | F9: 6100000 | I9: 1400000 | J9: 3386900 | L9: 3386900 | P9: 350460 | S9: 350460 | V9: 346330 | Z9: 346330
A10: 남부발전㈜ | C10: 11304845 | E10: 6044000 | F10: 6044000 | J10: 5060845 | L10: 4914600 | V10: 200000 | Z10: 200000
A11: 동서발전㈜ | C11: 9411900 | E11: 6440000 | F11: 6040000 | G11: 400000 | J11: 2971900 | L11: 2971900
A12: 포스코에너지㈜ | C12: 3176000 | J12: 3176000 | L12: 3176000
A13: GS EPS㈜ | C13: 2261750 | J13: 2261750 | L13: 2261750
A14: 지역난방공사 | C14: 2276534 | P14: 2276534 | R14: 82400 | S14: 2194134
A15: 고성그린파워㈜ | C15: 2080000 | E15: 2080000 | F15: 2080000
A16: 씨지앤 | C16: 1855500 | J16: 1855500 | L16: 1389700
A17: 동두천드림파워㈜ | C17: 1716800 | J17: 1716800 | L17: 1716800
A18: 파주에너지서비스 | C18: 1695200 | J18: 1695200 | L18: 1695200
A19: 포천파워㈜ | C19: 1450000 | J19: 1450000 | L19: 1450000
A20: GS 파워㈜ | C20: 1413380 | P20: 1413380 | S20: 1413380
A21: 수자원공사 | C21: 974600 | V21: 974600 | W21: 974600
A22: ㈜GS동해전력 | C22: 1190000 | E22: 1190000 | F22: 1190000
A23: 강릉에코파워(주) | C23: 2080000 | E23: 2080000 | F23: 2080000
A24: 기타 | C24: 9746733 | J24: 5761766 | L24: 4736366 | P24: 3984967 | R24: 26300 | S24: 3870667 | T24: 88000
A25: 비중앙급전발전기 | C25: =SUM(C26:C45) -> 30821906.01 | K25: 96550 | M25: 96550 | O25: 96550 | P25: 1265224 | Q25: 1259224 | S25: 6000 | V25: 29089197.01 | W25: 247016.4 | X25: 23947073.61 | Y25: 2151362 | Z25: 2743745 | AA25: 370935
A26: 한국전력㈜ | C26: 97823 | K26: 96550 | O26: 96550 | V26: 1273 | W26: 700 | X26: 573
A27: 한수원㈜ | C27: 108771.23 | V27: 108771.23 | W27: 11420 | X27: 77551.23 | Z27: 19800
A28: 남동발전㈜ | C28: 571998.24 | V28: 571998.24 | W28: 17599 | X28: 98189.24 | Y28: 79300 | Z28: 376910
A29: 중부발전㈜ | C29: 129029 | V29: 119029 | W29: 15086 | X29: 20703 | Y29: 32800 | Z29: 50440 | AA29: 10000
A30: 서부발전㈜ | C30: 288079.15 | V30: 288079.15 | W30: 7200 | X30: 47979.15 | Y30: 34000 | Z30: 198900
A31: 남부발전㈜ | C31: 189955.255 | V31: 189955.255 | W31: 2810 | X31: 38685.255 | Y31: 39500 | Z31: 108960
A32: 동서발전㈜ | C32: 166886.865 | V32: 166886.865 | X32: 81106.865 | Y32: 3000 | Z32: 82780
A33: 포스코에너지㈜ | C33: 14469 | V33: 14469 | X33: 14469
A34: GS EPS㈜ | C34: 209266.6 | V34: 209266.6 | X34: 4266.6 | Z34: 205000
A35: 지역난방공사 | C35: 66054.12 | V35: 25614.12 | X35: 8114.12 | Z35: 17500 | AA35: 40440
A36: 고성그린파워㈜ | C36: 6638 | V36: 6638 | W36: 5000 | X36: 1638
A37: 씨지앤 | C37: 125400 | V37: 125400 | Z37: 125400
A38: 동두천드림파워㈜ | C38: 1861.83 | V38: 1861.83 | X38: 1861.83
A39: 파주에너지서비스 | C39: 19800 | V39: 19800 | Z39: 19800
A40: 포천파워㈜ | C40: 664 | V40: 664 | X40: 664
A41: GS 파워㈜ | C41: 28451.68 | V41: 28451.68 | W41: 1030 | X41: 5011.68 | Y41: 7050 | Z41: 15360
A42: 수자원공사 | C42: 407384.895 | V42: 407384.895 | W42: 119857 | X42: 25527.895 | Y42: 8000 | Z42: 254000
A43: ㈜GS동해전력 | C43: 9973.2 | V43: 9973.2 | W43: 4872 | X43: 5101.2
A44: 강릉에코파워(주) | C44: 0 | V44: 0
A45: 기타 | C45: 28379399.94 | P45: 1265224 | Q45: 1259224 | S45: 6000 | V45: 26793680.94 | W45: 61442.4 | X45: 23515631.54 | Y45: 1947712 | Z45: 1268895 | AA45: 320495

Sheet Ⅰ-2-가.발전설비용량 및 대수
B1: 시점 | C1: 2023 | D1: 2022 | E1: 2022 | F1: 2022 | G1: 2022 | H1: 2022 | I1: 2022 | J1: 2022 | K1: 2022 | L1: 2022 | M1: 2022 | N1: 2022 | O1: 2022 | P1: 2022 | Q1: 2022 | R1: 2022 | S1: 2022 | T1: 2022 | U1: 2022 | V1: 2022 | W1: 2022 | X1: 2022 | Y1: 2022 | Z1: 2022 | AA1: 2022 | AB1: 2022 | AC1: 2022 | AD1: 2022 | AE1: 2022 | AF1: 2022 | AG1: 2022 | AH1: 2022 | AI1: 2022 | AJ1: 2022 | AK1: 2022 | AL1: 2022 | AM1: 2022 | AN1: 2022 | AO1: 2022 | AP1: 2022 | AQ1: 2022 | AR1: 2022 | AS1: 2022 | AT1: 2022 | AU1: 2022 | AV1: 2022 | AW1: 2022 | AX1: 2022 | AY1: 2022 | AZ1: 2022
B2: 설비형식별 | C2: 합계 | D2: 합계 | E2: 원자력 | F2: 원자력 | G2: 기력 | H2: 기력 | I2: ▶유연탄 | J2: ▶유연탄 | K2: ▶무연탄 | L2: ▶무연탄 | M2: ▶중유 | N2: ▶중유 | O2: ▶LNG | P2: ▶LNG | Q2: 복합화력 | R2: 복합화력 | S2: ▶경유 | T2: ▶경유 | U2: ▶LNG | V2: ▶LNG | W2: 내연력 | X2: 내연력 | Y2: ▶중유 | Z2: ▶중유 | AA2: ▶경유 | AB2: ▶경유 | AC2: 집단에너지 | AD2: 집단에너지 | AE2: ▶유연탄 | AF2: ▶유연탄 | AG2: ▶유류 | AH2: ▶유류 | AI2: ▶LNG | AJ2: ▶LNG | AK2: ▶기타 | AL2: ▶기타 | AM2: 양수 | AN2: 양수 | AO2: 신재생 | AP2: 신재생 | AQ2: ▶수력 | AR2: ▶수력 | AS2: ▶태양광 | AT2: ▶태양광 | AU2: ▶풍력 | AV2: ▶풍력 | AW2: ▶기타 | AX2: ▶기타 | AY2: 기타 | AZ2: 기타
B3: 항목 | C3: 용량 (kW) | D3: 대수 (대) | E3: 용량 (kW) | F3: 대수 (대) | G3: 용량 (kW) | H3: 대수 (대) | I3: 용량 (kW) | J3: 대수 (대) | K3: 용량 (kW) | L3: 대수 (대) | M3: 용량 (kW) | N3: 대수 (대) | O3: 용량 (kW) | P3: 대수 (대) | Q3: 용량 (kW) | R3: 대수 (대) | S3: 용량 (kW) | T3: 대수 (대) | U3: 용량 (kW) | V3: 대수 (대) | W3: 용량 (kW) | X3: 대수 (대) | Y3: 용량 (kW) | Z3: 대수 (대) | AA3: 용량 (kW) | AB3: 대수 (대) | AC3: 용량 (kW) | AD3: 대수 (대) | AE3: 용량 (kW) | AF3: 대수 (대) | AG3: 용량 (kW) | AH3: 대수 (대) | AI3: 용량 (kW) | AJ3: 대수 (대) | AK3: 용량 (kW) | AL3: 대수 (대) | AM3: 용량 (kW) | AN3: 대수 (대) | AO3: 용량 (kW) | AP3: 대수 (대) | AQ3: 용량 (kW) | AR3: 대수 (대) | AS3: 용량 (kW) | AT3: 대수 (대) | AU3: 용량 (kW) | AV3: 대수 (대) | AW3: 용량 (kW) | AX3: 대수 (대) | AY3: 용량 (kW) | AZ3: 대수 (대)
A4: 계통별 | C4: 용량 (kW) | D4: 대수 (대) | E4: 용량 (kW) | F4: 대수 (대) | G4: 용량 (kW) | H4: 대수 (대) | I4: 용량 (kW) | J4: 대수 (대) | K4: 용량 (kW) | L4: 대수 (대) | M4: 용량 (kW) | N4: 대수 (대) | O4: 용량 (kW) | P4: 대수 (대) | Q4: 용량 (kW) | R4: 대수 (대) | S4: 용량 (kW) | T4: 대수 (대) | U4: 용량 (kW) | V4: 대수 (대) | W4: 용량 (kW) | X4: 대수 (대) | Y4: 용량 (kW) | Z4: 대수 (대) | AA4: 용량 (kW) | AB4: 대수 (대) | AC4: 용량 (kW) | AD4: 대수 (대) | AE4: 용량 (kW) | AF4: 대수 (대) | AG4: 용량 (kW) | AH4: 대수 (대) | AI4: 용량 (kW) | AJ4: 대수 (대) | AK4: 용량 (kW) | AL4: 대수 (대) | AM4: 용량 (kW) | AN4: 대수 (대) | AO4: 용량 (kW) | AP4: 대수 (대) | AQ4: 용량 (kW) | AR4: 대수 (대) | AS4: 용량 (kW) | AT4: 대수 (대) | AU4: 용량 (kW) | AV4: 대수 (대) | AW4: 용량 (kW) | AX4: 대수 (대) | AY4: 용량 (kW) | AZ4: 대수 (대)
A5: 합계 | C5: =SUM(E5,G5,Q5,W5,AC5,AM5,AO5,AY5) -> 144420907.6 | D5: =SUM(F5,H5,R5,X5,AD5,AN5,AP5,AZ5) -> 132372 | E5: 24650000 | F5: 25 | G5: 39308658 | H5: 63 | I5: =SUM(I7:I25) -> 37508658 | J5: 57 | K5: 400000 | L5: 2 | O5: 1400000 | P5: 4 | Q5: 34038252 | R5: 200 | S5: 465800 | T5: 5 | U5: 33572452 | V5: 195 | W5: 136550 | X5: 210 | Y5: 40000 | Z5: 1 | AA5: 96550 | AB5: 209 | AC5: 9821006 | AD5: 83 | AE5: 1259224 | AF5: 14 | AG5: 108700 | AH5: 3 | AI5: =SUM(AI7:AI25) -> 8365082 | AJ5: =SUM(AJ7:AJ25) -> 65 | AK5: 88000 | AL5: 1 | AM5: 4700000 | AN5: 16 | AO5: =AO6+AO26 -> 31395506.61 | AP5: 131709 | AQ5: 1816996 | AR5: 220 | AS5: 23947073.61 | AT5: 131143 | AU5: 2151362 | AV5: 140 | AW5: 3480075 | AX5: 206 | AY5: 370935 | AZ5: 66
A6: 본계통 | C6: =SUM(E6,G6,Q6,W6,AC6,AM6,AO6,AY6) -> 142408988.3 | D6: 130392 | E6: 24650000 | F6: 25 | G6: 39308658 | H6: 63 | I6: 37508658 | J6: 57 | K6: 400000 | L6: 2 | O6: 1400000 | P6: 4 | Q6: 33558273 | R6: 190 | S6: 465800 | T6: 5 | U6: 33092473 | V6: 185 | AC6: 9821006 | AD6: 83 | AE6: 1259224 | AF6: 14 | AG6: 108700 | AH6: 3 | AI6: =SUM(AI8:AI26) -> 8365082 | AJ6: =SUM(AJ8:AJ26) -> 65 | AK6: 88000 | AL6: 1 | AM6: 4700000 | AN6: 16 | AO6: 30019316.28 | AP6: 129950 | AQ6: 1815080 | AR6: 212 | AS6: 23385618.28 | AT6: 129434 | AU6: 1733592 | AV6: 108 | AW6: 3085026 | AX6: 196 | AY6: 351735 | AZ6: 65
A7: 한수원㈜ | C7: 30040070.01 | D7: 113 | E7: 24650000 | F7: 25 | H7: 0 | AM7: 4700000 | AN7: 16 | AO7: 690070.01 | AP7: 72 | AQ7: 606800 | AR7: 30 | AS7: 63470.01 | AT7: 41 | AW7: 19800 | AX7: 1
A8: 남동발전㈜ | C8: 9341662.24 | D8: 64 | G8: 7868600 | H8: 12 | I8: 7868600 | J8: 12 | Q8: 922064 | R8: 10 | U8: 922064 | V8: 10 | AO8: 550998.24 | AP8: 42 | AQ8: 17599 | AR8: 4 | AS8: 98189.24 | AT8: 24 | AU8: 58300 | AV8: 4 | AW8: 376910 | AX8: 10
A9: 중부발전㈜ | C9: 10291023.8 | D9: 62 | G9: 6106058 | H9: 9 | I9: 6106058 | J9: 9 | Q9: 3550793 | R9: 22 | U9: 3550793 | V9: 22 | AC9: 530441 | AD9: 3 | AI9: 530441 | AJ9: 3 | AO9: 93731.8 | AP9: 27 | AQ9: 15086 | AR9: 4 | AS9: 16405.8 | AT9: 16 | AU9: 11800 | AV9: 3 | AW9: 50440 | AX9: 4 | AY9: 10000 | AZ9: 1
A10: 서부발전㈜ | C10: 11871769.15 | D10: 88 | G10: 7500000 | H10: 14 | I10: 6100000 | J10: 10 | O10: 1400000 | P10: 4 | Q10: 3386900 | R10: 22 | U10: 3386900 | V10: 22 | AC10: 350460 | AD10: 2 | AI10: 350460 | AJ10: 2 | AO10: 634409.15 | AP10: 50 | AQ10: 7200 | AR10: 2 | AS10: 47979.15 | AT10: 31 | AU10: 34000 | AV10: 2 | AW10: 545230 | AX10: 15
A11: 남부발전㈜ | C11: 10995300.88 | D11: 85 | G11: 6044000 | H11: 10 | I11: 6044000 | J11: 10 | Q11: 4809600 | R11: 30 | U11: 4809600 | V11: 30 | AO11: 141700.875 | AP11: 45 | AQ11: 2750 | AR11: 1 | AS11: 29990.875 | AT11: 41 | AW11: 108960 | AX11: 3
A12: 동서발전㈜ | C12: 9578786.865 | D12: 106 | G12: 6440000 | H12: 12 | I12: 6040000 | J12: 10 | K12: 400000 | L12: 2 | Q12: 2971900 | R12: 20 | U12: 2971900 | V12: 20 | AO12: 166886.865 | AP12: 74 | AS12: 81106.865 | AT12: 65 | AU12: 3000 | AV12: 1 | AW12: 82780 | AX12: 8
A13: 포스코에너지㈜ | C13: 3190469 | D13: 23 | Q13: 3176000 | R13: 20 | U13: 3176000 | V13: 20 | AO13: 14469 | AP13: 3 | AS13: 14469 | AT13: 3
A14: GS EPS㈜ | C14: 2471016.6 | D14: 16 | Q14: 2261750 | R14: 11 | U14: 2261750 | V14: 11 | AO14: 209266.6 | AP14: 5 | AS14: 4266.6 | AT14: 3 | AW14: 205000 | AX14: 2
A15: 지역난방공사 | C15: 2342588.12 | D15: 42 | AC15: 2276534 | AD15: 18 | AG15: 82400 | AH15: 2 | AI15: 2194134 | AJ15: 16 | AO15: 25614.12 | AP15: 21 | AS15: 8114.12 | AT15: 18 | AW15: 17500 | AX15: 3 | AY15: 40440 | AZ15: 3
A16: 고성그린파워㈜ | C16: 2086638 | D16: 4 | G16: 2080000 | H16: 2 | I16: 2080000 | J16: 2 | AO16: 6638 | AP16: 2 | AQ16: 5000 | AR16: 1 | AS16: 1638 | AT16: 1
A17: 씨지앤 | C17: 1980900 | D17: 16 | Q17: 1855500 | R17: 11 | S17: 465800 | T17: 5 | U17: 1389700 | V17: 6 | AO17: 125400 | AP17: 5 | AW17: 125400 | AX17: 5
A18: 동두천드림파워㈜ | C18: 1718661.83 | D18: 9 | Q18: 1716800 | R18: 6 | U18: 1716800 | V18: 6 | AO18: 1861.83 | AP18: 3 | AS18: 1861.83 | AT18: 3
A19: 파주에너지서비스 | C19: 1715000 | D19: 7 | Q19: 1695200 | R19: 6 | U19: 1695200 | V19: 6 | AO19: 19800 | AP19: 1 | AT19: 0 | AW19: 19800 | AX19: 1
A20: 포천파워㈜ | C20: 1450664 | D20: 7 | Q20: 1450000 | R20: 6 | U20: 1450000 | V20: 6 | AO20: 664 | AP20: 1 | AS20: 664 | AT20: 1
A21: GS 파워㈜ | C21: 1441831.68 | D21: 19 | AC21: 1413380 | AD21: 8 | AI21: 1413380 | AJ21: 8 | AO21: 28451.68 | AP21: 11 | AQ21: 1030 | AR21: 2 | AS21: 5011.68 | AT21: 6 | AU21: 7050 | AV21: 1 | AW21: 15360 | AX21: 2
A22: 수자원공사 | C22: 1381984.895 | D22: 121 | AO22: 1381984.895 | AP22: 121 | AQ22: 1094457 | AR22: 76 | AS22: 25527.895 | AT22: 41 | AU22: 8000 | AV22: 3 | AW22: 254000 | AX22: 1
A23: ㈜GS동해전력 | C23: 1199973.2 | D23: 5 | G23: 1190000 | H23: 2 | I23: 1190000 | J23: 2 | AO23: 9973.2 | AP23: 3 | AQ23: 4872 | AR23: 1 | AS23: 5101.2 | AT23: 2
A24: 강릉에코파워(주) | C24: 2080000 | D24: 2 | G24: 2080000 | H24: 2 | I24: 2080000 | J24: 2
A25: 기타 | C25: 37230648.02 | D25: 129603 | Q25: 5761766 | R25: 26 | U25: 5761766 | V25: 26 | AC25: 5250191 | AD25: 52 | AE25: 1259224 | AF25: 14 | AG25: 26300 | AH25: 1 | AI25: 3876667 | AJ25: 36 | AK25: 88000 | AL25: 1 | AO25: 25917396.02 | AP25: 129464 | AQ25: 60286 | AR25: 91 | AS25: 22981822.02 | AT25: 129138 | AU25: 1611442 | AV25: 94 | AW25: 1263846 | AX25: 141 | AY25: 301295 | AZ25: 61
A26: 도서 | C26: 2011919.325 | D26: 1980 | Q26: 479979 | R26: 10 | U26: 479979 | V26: 10 | W26: 136550 | X26: 210 | Y26: 40000 | Z26: 1 | AA26: 96550 | AB26: 209 | AO26: =AQ26+AS26+AU26+AW26 -> 1376190.325 | AP26: 1759 | AQ26: 1916 | AR26: 8 | AS26: 561455.325 | AT26: 1709 | AU26: 417770 | AV26: 32 | AW26: 395049 | AX26: 10 | AY26: 19200 | AZ26: 1
A27: 한국전력㈜ | C27: 97823 | D27: 220 | W27: 96550 | X27: 209 | AA27: 96550 | AB27: 209 | AO27: 1273 | AP27: 11 | AQ27: 700 | AR27: 2 | AS27: 573 | AT27: 9
A28: 한수원㈜ | C28: 14081.22 | D28: 18 | AO28: 14081.22 | AP28: 18 | AS28: 14081.22 | AT28: 18
A29: 남동발전㈜ | C29: 21000 | D29: 1 | AO29: 21000 | AP29: 1 | AU29: 21000 | AV29: 1
A30: 중부발전㈜ | C30: 484031.2 | D30: 13 | Q30: 228734 | R30: 4 | U30: 228734 | V30: 4 | W30: 40000 | X30: 1 | Y30: 40000 | Z30: 1 | AO30: 215297.2 | AP30: 8 | AS30: 4297.2 | AT30: 4 | AU30: 21000 | AV30: 1 | AW30: 190000 | AX30: 3
A31: 남부발전㈜ | C31: 499499.38 | D31: 24 | Q31: 251245 | R31: 6 | U31: 251245 | V31: 6 | AO31: 248254.38 | AP31: 18 | AQ31: 60 | AR31: 1 | AS31: 8694.38 | AT31: 11 | AU31: 39500 | AV31: 4 | AW31: 200000 | AX31: 2
A32: 기타 | C32: 895484.525 | D32: 1704 | AO32: =AQ32+AS32+AU32+AW32 -> 876284.525 | AP32: 1703 | AQ32: 1156 | AR32: 5 | AS32: 533809.525 | AT32: 1667 | AU32: 336270 | AV32: 26 | AW32: 5049 | AX32: 5 | AY32: 19200 | AZ32: 1

Sheet Ⅰ-2-다. 발전기별
B1: 시점 | C1: 2023 | D1: 2022 | E1: 2022
B2: 항목 | C2: 단위용량 (kW) | D2: 대수 (대) | E2: 용량합계 (kW)
A3: 발전기별 | C3: 단위용량 (kW) | D3: 대수 (대) | E3: 용량합계 (kW)
A4: 총계 | D4: 514 | E4: 102833460
A5: 본계통 | D5: 294 | E5: 102216931
A6: 도서 | D6: 220 | E6: 616529
A7: 기력 | D7: 63 | E7: 39308658
A8: 유연탄 | D8: 57 | E8: 37508658
A9: 무연탄 | D9: 2 | E9: 400000
A10: 중유
A11: LNG | D11: 4 | E11: 1400000
A12: 본계통 | D12: 63 | E12: 39308658
A13: 중유
A14: 울산발전소(2)
A15: LNG | D15: 4 | E15: 1400000
A16: 평택발전소 | C16: 350000 | D16: 4 | E16: 1400000
A17: 무연탄 | D17: 2 | E17: 400000
A18: 영동발전소(2)
A19: 동해발전소 | C19: 200000 | D19: 2 | E19: 400000
A20: 유연탄 | D20: 57 | E20: 37508658
A21: 호남발전소
A22: 삼천포발전소(1) | C22: 560000 | D22: 2 | E22: 1120000
A23: 삼천포발전소(2) | C23: 500000 | D23: 2 | E23: 1000000
A24: 보령발전소(1) | C24: 500000 | D24: 5 | E24: 2500000
A25: 보령발전소(2) | C25: 550000 | D25: 1 | E25: 550000
A26: 태안발전소(1) | C26: 500000 | D26: 8 | E26: 4000000
A27: 태안발전소(2) | C27: 1050000 | D27: 1 | E27: 1050000
A28: 태안발전소(3) | C28: 1050000 | D28: 1 | E28: 1050000
A29: 하동발전소 | C29: 500000 | D29: 8 | E29: 4000000
A30: 당진발전소(1) | C30: 500000 | D30: 8 | E30: 4000000
A31: 당진발전소(2) | C31: 1020000 | D31: 2 | E31: 2040000
A32: 영흥발전소(1) | C32: 800000 | D32: 2 | E32: 1600000
A33: 영흥발전소(2) | C33: 870000 | D33: 2 | E33: 1740000
A34: 영흥발전소(3) | C34: 870000 | D34: 2 | E34: 1740000
A35: 여수발전소(1) | C35: 328600 | D35: 1 | E35: 328600
A36: 여수발전소(2) | C36: 340000 | D36: 1 | E36: 340000
A37: 삼척그린발전소(1) | C37: 1022000 | D37: 1 | E37: 1022000
A38: 삼척그린발전소(2) | C38: 1022000 | D38: 1 | E38: 1022000
A39: 북평 | C39: 595000 | D39: 2 | E39: 1190000
A40: 신보령(1) | C40: 1019029 | D40: 1 | E40: 1019029
A41: 신보령(2) | C41: 1019029 | D41: 1 | E41: 1019029
A42: 고성(1) | C42: 1040000 | D42: 2 | E42: 2080000
A43: 신서천(1) | C43: 1018000 | D43: 1 | E43: 1018000
A44: 강릉안인발전소(2) | C44: 2080000 | D44: 2 | E44: 2080000
A45: 복합화력 | D45: 200 | E45: 34038252
A46: LNG | D46: 195 | E46: 32400807
A47: 경유 | D47: 5 | E47: 465800
A48: 본계통 | D48: 190 | E48: 33558273
A49: LNG | D49: 185 | E49: 33092473
A50: 발전자회사 | D50: 104 | E50: 15641257
A51: 서인천발전소GT | C51: 150000 | D51: 8 | E51: 1200000
A52: 서인천발전소ST | C52: 75000 | D52: 8 | E52: 600000
A53: 신인천발전소GT | C53: 150000 | D53: 8 | E53: 1200000
A54: 신인천발전소ST | C54: 150000 | D54: 4 | E54: 600000
A55: 분당발전소GT | C55: 77758 | D55: 8 | E55: 622064
A56: 분당발전소ST1 | C56: 185000 | D56: 1 | E56: 185000
A57: 분당발전소ST2 | C57: 115000 | D57: 1 | E57: 115000
A58: 일산발전소GT | C58: 100000 | D58: 6 | E58: 600000
A59: 일산발전소ST1 | C59: 200000 | D59: 1 | E59: 200000
A60: 일산발전소ST2 | C60: 100000 | D60: 1 | E60: 100000
A61: 평택발전소GT(2) | C61: 286300 | D61: 2 | E61: 572600
A62: 평택발전소ST(2) | C62: 295900 | D62: 1 | E62: 295900
A63: 보령발전소GT | C63: 150000 | D63: 6 | E63: 900000
A64: 보령발전소ST | C64: 150000 | D64: 3 | E64: 450000
A65: 울산발전소GT(1) | C65: 100000 | D65: 2 | E65: 200000
A66: 울산발전소GT(2) | C66: 150000 | D66: 4 | E66: 600000
A67: 울산발전소ST(1) | C67: 100000 | D67: 1 | E67: 100000
A68: 울산발전소ST(2) | C68: 150000 | D68: 2 | E68: 300000
A69: 울산발전소GT | C69: 286600 | D69: 2 | E69: 573200
A70: 울산발전소ST | C70: 298700 | D70: 1 | E70: 298700
A71: 부산발전소GT | C71: 150000 | D71: 8 | E71: 1200000
A72: 부산발전소ST | C72: 150000 | D72: 4 | E72: 600000
A73: 인천발전소GT | C73: 160729 | D73: 2 | E73: 321458
A74: 인천발전소ST | C74: 182081 | D74: 1 | E74: 182081
A75: 인천발전소GT(2) | C75: 163979 | D75: 2 | E75: 327958
A76: 인천발전소ST(2) | C76: 180950 | D76: 1 | E76: 180950
A77: 인천발전소GT(3) | C77: 150000 | D77: 2 | E77: 300000
A78: 인천발전소ST(3) | C78: 150000 | D78: 1 | E78: 150000
A79: 군산발전소GT | C79: 233300 | D79: 2 | E79: 466600
A80: 군산발전소ST | C80: 251800 | D80: 1 | E80: 251800
A81: 영월발전소GT | C81: 183000 | D81: 3 | E81: 549000
A82: 영월발전소ST | C82: 299000 | D82: 1 | E82: 299000
A83: 안동발전소GT | C83: 234500 | D83: 1 | E83: 234500
A84: 안동발전소ST | C84: 127100 | D84: 1 | E84: 127100
A85: 서울복합GT | C85: 241298 | D85: 2 | E85: 482596
A86: 서울복합ST | C86: 127875 | D86: 2 | E86: 255750
A87: 타사 | D87: 81 | E87: 17451216
A88: 포스코파워발전소GT(1) | C88: 100000 | D88: 6 | E88: 600000
A89: 포스코파워발전소ST(1) | C89: 150000 | D89: 2 | E89: 300000
A90: 포스코파워발전소GT(2) | C90: 183200 | D90: 4 | E90: 732800
A91: 포스코파워발전소ST(2) | C91: 208200 | D91: 2 | E91: 416400
A92: 포스코파워발전소GT(3) | C92: 242700 | D92: 3 | E92: 728100
A93: 포스코파워발전소ST(3) | C93: 132900 | D93: 3 | E93: 398700
A94: 당진발전소GT(1) | C94: 160960 | D94: 2 | E94: 321920
A95: 당진발전소ST(1) | C95: 178830 | D95: 1 | E95: 178830
A96: 당진발전소GT(2) | C96: 174500 | D96: 2 | E96: 349000
A97: 당진발전소ST(2) | C97: 184000 | D97: 1 | E97: 184000
A98: 당진발전소GT(3) | C98: 250000 | D98: 1 | E98: 250000
A99: 당진발전소ST(3) | C99: 132000 | D99: 1 | E99: 132000
A100: 당진발전소GT(4) | C100: 269800 | D100: 2 | E100: 539600
A101: 당진발전소ST(4) | C101: 306400 | D101: 1 | E101: 306400
A102: 율촌발전소GT(1) | C102: 163800 | D102: 2 | E102: 327600
A103: 율촌발전소ST(1) | C103: 197900 | D103: 1 | E103: 197900
A104: 율촌발전소GT(2) | C104: 285800 | D104: 2 | E104: 571600
A105: 율촌발전소ST(2) | C105: 292600 | D105: 1 | E105: 292600
A106: 광양발전소GT | C106: 153100 | D106: 4 | E106: 612400
A107: 광양발전소ST | C107: 188400 | D107: 2 | E107: 376800
A108: 포천파워 포천GT | C108: 240500 | D108: 4 | E108: 962000
A109: 포천파워 포천ST | C109: 244000 | D109: 2 | E109: 488000
A110: 에스파워 안산GT | C110: 242900 | D110: 2 | E110: 485800
A111: 에스파워 안산ST | C111: 265400 | D111: 1 | E111: 265400
A112: 오성발전소GT | C112: 165680 | D112: 3 | E112: 497040
A113: 오성발전소ST | C113: 272790 | D113: 1 | E113: 272790
A114: 동두천드림GT | C114: 286300 | D114: 4 | E114: 1145200
A115: 동두천드림ST | C115: 285800 | D115: 2 | E115: 571600
A116: 파주문산발전소GT(1) | C116: 275500 | D116: 2 | E116: 551000
A117: 파주문산발전소ST(1) | C117: 296600 | D117: 1 | E117: 296600
A118: 파주문산발전소GT(2) | C118: 275500 | D118: 2 | E118: 551000
A119: 파주문산발전소ST(2) | C119: 296600 | D119: 1 | E119: 296600
A120: 포천천연발전소GT | C120: 287700 | D120: 2 | E120: 575400
A121: 포천천연발전소ST | C121: 298800 | D121: 1 | E121: 298800
A122: 부산정관에너지GT | C122: 26650 | D122: 1 | E122: 26650
A123: 부산정관에너지ST | C123: 19186 | D123: 1 | E123: 19186
A124: 영남파워발전소GT | C124: 292000 | D124: 1 | E124: 292000
A125: 영남파워발전소ST | C125: 150800 | D125: 1 | E125: 150800
A126: 신평택발전소GT | C126: 290200 | D126: 2 | E126: 580400
A127: 신평택발전소ST | C127: 282900 | D127: 1 | E127: 282900
A128: 여주복합ST | C128: 353356 | D128: 1 | E128: 353356
A129: 여주복합GT | C129: 336022 | D129: 2 | E129: 672044
A130: 경유 | D130: 5 | E130: 465800
A131: 대산발전소GT | C131: 93700 | D131: 4 | E131: 374800
A132: 대산발전소ST | C132: 91000 | D132: 1 | E132: 91000
A133: 도서 | D133: 10 | E133: 479979
A134: 경유
A135: LNG | D135: 10 | E135: 479979
A136: 한림발전소GT | C136: 35000 | D136: 2 | E136: 70000
A137: 한림발전소ST | C137: 35000 | D137: 1 | E137: 35000
A138: 제주복합GT(1) | C138: 71893 | D138: 1 | E138: 71893
A139: 제주복합ST(1) | C139: 42474 | D139: 1 | E139: 42474
A140: 제주복합GT(2) | C140: 71893 | D140: 1 | E140: 71893
A141: 제주복합ST(2) | C141: 42474 | D141: 1 | E141: 42474
A142: 남제주복합GT | C142: 48514 | D142: 2 | E142: 97028
A143: 남제주복합ST | C143: 49217 | D143: 1 | E143: 49217
A144: 내연력 | D144: 210 | E144: 136550
A145: 중유 | D145: 1 | E145: 40000
A146: 경유 | D146: 209 | E146: 96550
A147: 도서 | D147: 210 | E147: 136550
A148: 중유 | D148: 1 | E148: 40000
A149: 제주내연 | C149: 40000 | D149: 1 | E149: 40000
A150: 경유 | D150: 209 | E150: 96550
A151: 제주발전소GT-'89이설
A152: 제주발전소GT-'91이설
A153: 제주발전소GT-'94이설
A154: 울릉도발전소DG(3) | C154: 1000 | D154: 2 | E154: 2000
A155: 울릉도발전소DG(4) | C155: 1500 | D155: 2 | E155: 3000
A156: 울릉도발전소DG(5) | C156: 1500 | D156: 1 | E156: 1500
A157: 울릉도발전소DG(6) | C157: 3000 | D157: 2 | E157: 6000
A158: 울릉도발전소DG(7) | C158: 3000 | D158: 2 | E158: 6000
A159: 조도발전소DG(1) | C159: 500 | D159: 2 | E159: 1000
A160: 조도발전소DG(2) | C160: 800 | D160: 2 | E160: 1600
A161: 조도발전소DG(3) | C161: 800 | D161: 1 | E161: 800
A162: 흑산도발전소DG(2) | C162: 500 | D162: 1 | E162: 500
A163: 흑산도발전소DG(3) | C163: 750 | D163: 2 | E163: 1500
A164: 흑산도발전소DG(4) | C164: 1000 | D164: 2 | E164: 2000
A165: 추자도발전소DG(1) | C165: 500 | D165: 3 | E165: 1500
A166: 추자도발전소DG(2) | C166: 1000 | D166: 2 | E166: 2000
A167: 추자도발전소DG(3) | C167: 1000 | D167: 2 | E167: 2000
A168: 거문도발전소DG(1) | C168: 1000 | D168: 1 | E168: 1000
A169: 거문도발전소DG(2) | C169: 1000 | D169: 1 | E169: 1000
A170: 거문도발전소DG(3) | C170: 500 | D170: 1 | E170: 500
A171: 거문도발전소DG(4) | C171: 1000 | D171: 2 | E171: 2000
A172: 덕적도발전소DG(1) | C172: 300 | D172: 3 | E172: 900
A173: 덕적도발전소DG(2) | C173: 500 | D173: 1 | E173: 500
A174: 덕적도발전소DG(3) | C174: 500 | D174: 1 | E174: 500
A175: 덕적도발전소DG(4) | C175: 500 | D175: 2 | E175: 1000
A176: 위도발전소DG(1) | C176: 450 | D176: 3 | E176: 1350
A177: 위도발전소DG(2) | C177: 500 | D177: 1 | E177: 500
A178: 위도발전소DG(3) | C178: 1000 | D178: 1 | E178: 1000
A179: 백령도발전소DG(1) | C179: 1500 | D179: 3 | E179: 4500
A180: 백령도발전소DG(2) | C180: 1500 | D180: 1 | E180: 1500
A181: 백령도발전소DG(3) | C181: 1500 | D181: 2 | E181: 3000
A182: 백령도발전소DG(4) | C182: 3000 | D182: 2 | E182: 6000
A183: 대청도발전소DG(1) | C183: 450 | D183: 1 | E183: 450
A184: 대청도발전소DG(2) | C184: 500 | D184: 1 | E184: 500
A185: 대청도발전소DG(3) | C185: 1300 | D185: 2 | E185: 2600
A186: 소청도발전소DG(1) | C186: 800 | D186: 3 | E186: 2400
A187: 연평도발전소DG(1) | C187: 1000 | D187: 2 | E187: 2000
A188: 연평도발전소DG(2) | C188: 1900 | D188: 3 | E188: 5700
A189: 자월도발전소DG(1) | C189: 150 | D189: 1 | E189: 150
A190: 자월도발전소DG(2) | C190: 500 | D190: 3 | E190: 1500
A191: 홍도발전소DG(1) | C191: 250 | D191: 1 | E191: 250
A192: 홍도발전소DG(2) | C192: 500 | D192: 1 | E192: 500
A193: 홍도발전소DG(3) | C193: 800 | D193: 2 | E193: 1600
A194: 비양도발전소DG | C194: 80 | D194: 3 | E194: 240
A195: 덕우도발전소DG(1) | C195: 80 | D195: 3 | E195: 240
A196: 덕우도발전소DG(2) | C196: 150 | D196: 1 | E196: 150
A197: 여서도발전소DG | C197: 80 | D197: 3 | E197: 240
A198: 가파도발전소DG | C198: 150 | D198: 3 | E198: 450
A199: 비안도발전소DG(1) | C199: 150 | D199: 2 | E199: 300
A200: 비안도발전소DG(2) | C200: 150 | D200: 1 | E200: 150
... 93 more rows

Sheet Ⅰ-2-라.지역별
B1: 시점 | C1: 2023 | D1: 2022 | E1: 2022 | F1: 2022 | G1: 2022 | H1: 2022 | I1: 2022 | J1: 2022 | K1: 2022 | L1: 2022 | M1: 2022 | N1: 2022 | O1: 2022 | P1: 2022 | Q1: 2022 | R1: 2022 | S1: 2022 | T1: 2022
B2: 지역별 | C2: 합계 | D2: 서울 | E2: 경기 | F2: 인천 | G2: 강원 | H2: 대전 | I2: 충북 | J2: 충남 | K2: 세종 | L2: 광주 | M2: 전북 | N2: 전남 | O2: 부산 | P2: 대구 | Q2: 울산 | R2: 경북 | S2: 경남 | T2: 제주
A3: 발전설비별 | C3: 합계 | D3: 서울 | E3: 경기 | F3: 인천 | G3: 강원 | H3: 대전 | I3: 충북 | J3: 충남 | K3: 세종 | L3: 광주 | M3: 전북 | N3: 전남 | O3: 부산 | P3: 대구 | Q3: 울산 | R3: 경북 | S3: 경남 | T3: 제주
A4: 합계 | C4: 144420.908 | D4: 966.445495 | E4: 22073.01772 | F4: 14210.45664 | G4: 11295.79405 | H4: 194.79879 | I4: 1929.102514 | J4: 26922.40987 | K4: 616.08285 | L4: 419.577711 | M4: 6696.03456 | N4: 15363.38811 | O4: 6702.43006 | P4: 829.99527 | Q4: 5476.442325 | R4: 17278.60546 | S4: 11525.33985 | T4: 1920.986725
A5: 구성비 | C5: 1 | D5: 0.006691866907 | E5: 0.1528381038 | F5: 0.09839611758 | G5: 0.07821439571 | H5: 0.001348826792 | I5: 0.01335750163 | J5: 0.18641629 | K5: 0.004265884064 | L5: 0.002905242162 | M5: 0.04636471722 | N5: 0.1063792516 | O5: 0.04640900097 | P5: 0.005747057552 | Q5: 0.03792001034 | R5: 0.1196406095 | S5: 0.07980381794 | T5: 0.01330130624
A6: 원자력 | C6: 24650 | N6: 5900 | O6: 4550 | Q6: 2800 | R6: 11400
A7: 기력 | C7: 39308.658 | E7: 1400 | F7: 5080 | G7: 5714 | J7: 18246.058 | N7: 668.6 | S7: 8200
A8: 유연탄 | C8: 37508.658 | F8: 5080 | G8: 5314 | J8: 18246.058 | N8: 668.6 | S8: 8200
A9: 무연탄 | C9: 400 | G9: 400
A10: 중유
A11: LNG | C11: 1400 | E11: 1400
A12: 복합화력 | C12: 34038.252 | D12: 738.346 | E12: 11836.494 | F12: 8238.447 | G12: 848 | J12: 4077.55 | M12: 718.4 | N12: 2378.9 | O12: 1845.836 | Q12: 2514.7 | R12: 361.6 | T12: 479.979
A13: 내연력 | C13: 136.55 | E13: 0.45 | F13: 36.23 | J13: 3.81 | M13: 7.34 | N13: 22.44 | R13: 18.5 | S13: 0.89 | T13: 46.89
A14: 중유 | C14: 40 | T14: 40
A15: 경유 | C15: 96.55 | E15: 0.45 | F15: 36.23 | J15: 3.81 | M15: 7.34 | N15: 22.44 | R15: 18.5 | S15: 0.89 | T15: 6.89
A16: 집단에너지 | C16: 9821.006 | D16: 64 | E16: 6043.478 | F16: 338.3 | G16: 431.2 | H16: 136.3 | J16: 596.7 | K16: 530.441 | L16: 115.246 | M16: 445.369 | N16: 312.5 | O16: 19 | P16: 487.1 | R16: 156.1 | S16: 145.272
A17: 유연탄 | C17: 1259.224 | E17: 253.355 | M17: 445.369 | N17: 312.5 | O17: 19 | P17: 72.9 | R17: 156.1
A18: 유류 | C18: 108.7 | E18: 38.9 | P18: 43.5 | S18: 26.3
A19: LNG | C19: 8365.082 | D19: 64 | E19: 5751.223 | F19: 338.3 | G19: 431.2 | H19: 48.3 | J19: 596.7 | K19: 530.441 | L19: 115.246 | P19: 370.7 | S19: 118.972
A20: LNG 복합 | C20: 738.346 | D20: 11836.494 | E20: 8238.447 | F20: 848 | I20: 3611.75 | L20: 718.4 | M20: 2378.9 | N20: 1845.836 | P20: 2514.7 | Q20: 361.6 | S20: 479.979
A21: 기타 | C21: 88 | H21: 88
A22: 양수 | C22: 4700 | E22: 400 | G22: 1000 | M22: 600 | R22: 1400 | S22: 1300
A23: 신재생 | C23: 31395.50701 | D23: 136.149495 | E23: 2332.940725 | F23: 486.699645 | G23: 3283.624048 | H23: 58.49879 | I23: 1877.805514 | J23: 3988.901871 | K23: 82.39185 | L23: 299.971711 | M23: 4910.23056 | N23: 6058.07811 | O23: 253.69406 | P23: 332.99527 | Q23: 139.842325 | R23: 3903.470458 | S23: 1875.29485 | T23: 1374.917725
A24: 일반수력 | C24: 1586.98 | E24: 260.1 | G24: 505.28 | I24: 502 | M24: 57.1 | N24: 22.5 | R24: 140 | S24: 100
A25: 소수력 | C25: 230.0164 | D25: 0.3 | E25: 15.809 | F25: 12.599 | G25: 19.815 | I25: 17.004 | J25: 32.297 | K25: 2.31 | L25: 1.83 | M25: 21.287 | N25: 16.245 | O25: 0.02 | P25: 4.06 | Q25: 0.3 | R25: 39.455 | S25: 45.469 | T25: 1.2164
A26: 신재생(태양광, 풍력, 기타) | C26: 29578.51061 | D26: 135.849495 | E26: 2057.031725 | F26: 474.100645 | G26: 2758.529048 | H26: 58.49879 | I26: 1358.801514 | J26: 3956.604871 | K26: 80.08185 | L26: 298.141711 | M26: 4831.84356 | N26: 6019.33311 | O26: 253.67406 | P26: 328.93527 | Q26: 139.542325 | R26: 3724.015458 | S26: 1729.82585 | T26: 1373.701325
A27: 기타 | C27: 370.935 | D27: 27.95 | E27: 59.655 | F27: 30.78 | G27: 18.97 | I27: 51.297 | J27: 9.39 | K27: 3.25 | L27: 4.36 | M27: 14.695 | N27: 22.87 | O27: 33.9 | P27: 9.9 | Q27: 21.9 | R27: 38.935 | S27: 3.883 | T27: 19.2

Sheet Ⅱ-1.설비형식별 발전설비구성
B1: 시점 | C1: 2023 | D1: 2022
B2: 항목 | C2: 용량 (천kW) | D2: 발전기대수 (대)
A3: 설비형식별 | C3: 용량 (천kW) | D3: 발전기대수 (대)
A4: 합계 | C4: =SUM(C5,C6,C11,C12,C13,C14,C15,C16) -> 144420.908 | D4: 132372
A5: 원자력 | C5: 24650 | D5: 25
A6: 기력 | C6: 39308.658 | D6: 63
A7: 무연탄 | C7: 400 | D7: 2
A8: 유연탄 | C8: 37508.658 | D8: 57
A9: 중유
A10: LNG | C10: 1400 | D10: 4
A11: 복합화력 | C11: 34038.252 | D11: 200
A12: 내연력 | C12: 136.55 | D12: 210
A13: 집단에너지 | C13: 9821.006 | D13: 83
A14: 양수 | C14: 4700 | D14: 16
A15: 신재생 | C15: 31395.50701 | D15: 131709
A16: 기타 | C16: 370.935 | D16: 66

Sheet Ⅱ-2.연료원별 발전설비구성
B1: 시점 | C1: 2023
A2: 연료원별 | C2: 2022
A3: 합계 | C3: =SUM(C4,C5,C9,C10,C11) -> 144420.442
A4: 원자력 | C4: 24650
A5: 화력 | C5: 83216
A6: 석탄 | C6: 39167.882
A7: 유류 | C7: 711.05
A8: LNG | C8: 43337.534
A9: 양수 | C9: 4700
A10: 신재생 | C10: 31395.50701
A11: 기타 | C11: 458.935

Sheet Ⅱ-3-(1).사업자별 발전설비구성
B1: 시점 | C1: 2023 | D1: 2022 | E1: 2022 | F1: 2022 | G1: 2022 | H1: 2022
B2: 사업자별 | C2: 합계 | D2: 합계 | E2: 한전및발전자회사 | F2: 한전및발전자회사 | G2: 기타발전회사 | H2: 기타발전회사
B3: 항목 | C3: 용량 (천kW) | D3: 발전기대수 (대) | E3: 용량 (천kW) | F3: 발전기대수 (대) | G3: 용량 (천kW) | H3: 발전기대수 (대)
A4: 설비형식별 | C4: 용량 (천kW) | D4: 발전기대수 (대) | E4: 용량 (천kW) | F4: 발전기대수 (대) | G4: 용량 (천kW) | H4: 발전기대수 (대)
A5: 합계 | C5: =E5+G5 -> 183729.124 | D5: =F5+H5 -> 132435 | E5: =SUM(E6:E17) -> 117194.003 | F5: =SUM(F6:F17) -> 851 | G5: 66535.121 | H5: 131584
A6: 원자력 | C6: =E6+G6 -> 24650 | D6: 25 | E6: 24650 | F6: 25 | G6: 0 | H6: 0
A7: 기력 | C7: 39308.658 | D7: 63 | E7: 33958.658 | F7: 57 | G7: 5350 | H7: 6
A8: 무연탄 | C8: 400 | D8: 2 | E8: 400 | F8: 2 | G8: 0 | H8: 0
A9: 유연탄 | C9: 37508.658 | D9: 57 | E9: 32158.658 | F9: 51 | G9: 5350 | H9: 6
A10: 중유
A11: LNG | C11: 1400 | D11: 4 | E11: 1400 | F11: 4 | G11: 0 | H11: 0
A12: 복합화력 | C12: 34038.252 | D12: 200 | E12: 16121.236 | F12: 114 | G12: 17917.016 | H12: 86
A13: 내연력 | C13: 136.55 | D13: 210 | E13: 136.55 | F13: 210 | G13: 0 | H13: 0
A14: 집단에너지 | C14: 9821.006 | D14: 83 | E14: 880.901 | F14: 5 | G14: 8940.105 | H14: 78
A15: 양수 | C15: 4700 | D15: 16 | E15: 4700 | F15: 16 | G15: 0 | H15: 0
A16: 신재생 | C16: 31395 | D16: 131709 | E16: 2778 | F16: 366 | G16: 28617 | H16: 131343
A17: 기타 | C17: 371 | D17: 66 | E17: 10 | F17: 1 | G17: 361 | H17: 65

Sheet Ⅱ-3-(2).발전원별 점유율
B1: 시점 | C1: 2023 | D1: 2022
B2: 사업자별 | C2: 한전및발전자회사 | D2: 기타발전회사
A3: 발전원별 | C3: 한전및발전자회사 | D3: 기타발전회사
A4: 합계 | C4: 57.63 | D4: 42.37
A5: 원자력 | C5: 100 | D5: 0
A6: 화력(집단포함) | C6: 61.4 | D6: 38.6
A7: 양수 | C7: 100 | D7: 0
A8: 신재생 | C8: 8.85 | D8: 91.15
A9: 기타 | C9: 2.18 | D9: 97.82

Sheet Ⅲ-2.발전원별 증감추이
B1: 시점 | C1: 2023
A2: 발전원별 | C2: 2022
A3: 합계 | C3: 144420908
A4: 양수 및 수력 | C4: 6516996.4
A5: 기력
A6: 유연탄 | C6: 37508658
A7: 무연탄 | C7: 400000
A8: 중유 | C8: 0
A9: LNG | C9: 1400000
A10: 내연력 및 복합화력 | C10: 34174802
A11: 원자력 | C11: 24650000
A12: 집단에너지, 신재생, 기타 | C12: 39770451.61

Sheet Ⅲ-3-가.양수및수력 증감추이
B1: 시점 | C1: 2023
A2: 발전소별 | C2: 2022
A3: 합계 | C3: 6512423
A4: 양수 | C4: 4700000
A5: 청평양수 | C5: 400000
A6: 삼랑진양수 | C6: 600000
A7: 무주양수 | C7: 600000
A8: 산청양수 | C8: 700000
A9: 양양양수 | C9: 1000000
A10: 청송양수 | C10: 600000
A11: 예천양수 | C11: 800000
A12: 일반수력 | C12: 1581980
A13: 화천 | C13: 108000
A14: 춘천 | C14: 62280
A15: 의암 | C15: 48000
A16: 청평 | C16: 140100
A17: 팔당 | C17: 120000
A18: 칠보 | C18: 35000
A19: 강릉 | C19: 82000
A20: 충주 | C20: 400000
A21: 소양강 | C21: 200000
A22: 안동 | C22: 90000
A23: 대청 | C23: 90000
A24: 합천 | C24: 100000
A25: 주암 | C25: 22500
A26: 임하 | C26: 50000
A27: 남강
A28: 용담 | C28: 22100
A29: 충주제2수력 | C29: 12000
A30: 소수력 | C30: 249425.4
A31: 보성강 | C31: 4500
A32: 괴산 | C32: 2600
A33: 강림 | C33: 450
A34: 추산
A35: 양양양수소수력 | C35: 1400
A36: 무주양수소수력 | C36: 400
A37: 산청양수소수력 | C37: 995
A38: 산청양수소수력#1
A39: 산천양수소수력#2
A40: 삼천포해양 | C40: 5000
A41: 보령화력소수력#2 | C41: 2500
A42: 태안 | C42: 7200
A43: 영흥해양 | C43: 3000
A44: 영천 | C44: 1000
A45: 밀양 | C45: 1300
A46: 광천 | C46: 450
A47: 반변 | C47: 1060
A48: 보령 | C48: 701
A49: 부안 | C49: 193
A50: 용담 | C50: 6230
A51: 운문 | C51: 360
A52: 횡성 | C52: 1000
A53: 성남 | C53: 340
A54: 장흥 | C54: 800
A55: 안동 | C55: 1500
A56: 당진
A57: 서리보 | C57: 1500
A58: 탑정 | C58: 320
A59: 행원 | C59: 60
A60: 경천#2 | C60: 2100
A61: 대곡 | C61: 300
A62: 합천
A63: 달방 | C63: 170
A64: 주암 | C64: 1000
A65: 대청댐 | C65: 800
A66: 성남제2 | C66: 360
A67: 영월
A68: 덕송
A69: 정선 | C69: 1920
A70: 대아(순천시)
A71: 경천 | C71: 800
A72: 포천
A73: 임기 | C73: 1200
A74: 성주 | C74: 1800
A75: 정읍
A76: 방우리 | C76: 2200
A77: 소천 | C77: 2400
A78: 봉화 | C78: 2100
A79: 금강 | C79: 1350
A80: 한석
A81: 산내 | C81: 820
A82: 동화 | C82: 1000
A83: 천상 | C83: -
A84: 장성 | C84: 1392
A85: 하동호 | C85: 825
A86: 담양 | C86: 1274
A87: 백곡 | C87: 430
A88: 원정수 | C88: 600
A89: 고문 | C89: 1500
A90: 홍익동진
A91: 율현 | C91: 560
A92: 경천지구 | C92: 440
A93: 울돌목조류
A94: 보성 | C94: 1100
A95: 보령화력소수력#1 | C95: 5000
A96: 고산 | C96: 560
A97: 군위 | C97: 500
A98: 농어촌공사 | C98: 490
A99: 횡성댐2 | C99: 300
A100: 극동 | C100: 1500
A101: 세종보 | C101: 2310
A102: 삿갓보 | C102: 400
A103: 용림 | C103: 600
A104: 원통보 | C104: 200
A105: 판교
A106: 영흥해양#2 | C106: 4599
A107: 강정고령보 | C107: 3000
A108: 강천보 | C108: 4950
A109: 구미보 | C109: 3000
A110: 공주보 | C110: 3000
A111: 물야 | C111: 410
A112: 백제보 | C112: 2640
A113: 솔향강릉 | C113: 340
A114: 승촌보 | C114: 800
A115: 예천양수 | C115: 900
A116: 이포보 | C116: 3000
A117: 죽산보 | C117: 1220
A118: 토평 | C118: 45
A119: 궁평 | C119: 180
A120: 낙단보 | C120: 3000
A121: 달성보 | C121: 2856
A122: 동상 | C122: 590
A123: 상주보 | C123: 3000
A124: 여주보 | C124: 4950
A125: 예당 | C125: 480
A126: 오봉지구 | C126: 530
A127: 주암역조정지댐 | C127: 55
A128: 칠곡보 | C128: 3000
A129: 함안보 | C129: 5000
A130: 합천·창녕보 | C130: 5000
A131: 자인정수 | C131: 65
A132: 광주호 | C132: 240
A133: 안계 | C133: 990
A134: 극동제2 | C134: 750
A135: KC하이드로 | C135: 800
A136: 정우#2 | C136: 75
A137: 장성호 | C137: 1392
A138: 개취보 | C138: 420
A139: 부항댐 | C139: 600
A140: 리오에너지 | C140: 10
A141: 회동댐 | C141: 0
A142: 노량진 | C142: 300
A143: 가북 | C143: 650
A144: 금계 | C144: 280
A145: 낙덕 | C145: 60
A146: 백운제#1 | C146: 160
A147: 구만#1 | C147: 170
A148: 덕남정수장 | C148: 270
A149: 영흥해양#3 | C149: 5000
A150: 고수 | C150: 99
A151: 죽전 | C151: 190
A152: 당진화력2
A153: 서포 | C153: 350
A154: 성덕댐 | C154: 230
A155: 운서보 | C155: 400
A156: 남강 | C156: 18000
A157: 소전
A158: 용담고산 | C158: 0
A159: 북창보 | C159: 430
A160: 잠곡 | C160: 465
A161: 희광에너지 | C161: 98
A162: 동화#1 | C162: 600
A163: 구이 | C163: 360
A164: 불갑호 | C164: 600
A165: 동화정수장 | C165: 120
A166: 케이디이
A167: 유량몰이부산
A168: 오태 | C168: 189
A169: 문경당포 | C169: 220
A170: 유량몰이서울서남
A171: 솔라유니캐트
A172: 자연에너지 | C172: 35
A173: 단산 | C173: 250
A174: 북평해양 | C174: 4872
A175: 맹동 | C175: 360
A176: 보청 | C176: 350
A177: 용연정수장 | C177: 760
A178: 용담고산#1 | C178: 800
A179: 섬진강댐 | C179: 1650
A180: 영주 | C180: 5000
A181: 창녕
A182: 주월 | C182: 50
A183: 신보령 | C183: 5000
A184: 목동탄소제로마을 | C184: 99
A185: 일산정수장 | C185: 250
A186: 유량몰이서울중랑 | C186: 16
A187: 삼척그린파워해양 | C187: 2750
A188: 묘곡지구 | C188: 250
A189: 대청댐2 | C189: 900
A190: 금광 | C190: 360
A191: 합천2 | C191: 1800
A192: 양구동면정수장 | C192: 180
A193: 대산 | C193: 19.4
A194: 도원 | C194: 180
A195: 예천양수미니 | C195: 25
A196: 비룡 | C196: 600
A197: 소향 | C197: 3000
A198: 하이드로에너지 | C198: 9
A199: 신손항 | C199: 150
A200: 대아(해남군) | C200: 15
... 30 more rows

Sheet Ⅲ-3-나.기력 증감추이
B1: 시점 | C1: 2023
A2: 발전소별 | C2: 2022
A3: 합계 | C3: 39308658
A4: 서울
A5: 인천
A6: 영남
A7: 울산
A8: 호남
A9: 영동
A10: 여수 | C10: 668600
A11: 평택 | C11: 1400000
A12: 남제주
A13: 서천
A14: 삼천포 | C14: 2120000
A15: 보령 | C15: 3050000
A16: 태안 | C16: 6100000
A17: 하동 | C17: 4000000
A18: 동해 | C18: 400000
A19: 당진 | C19: 6040000
A20: 영흥 | C20: 5080000
A21: 제주1
A22: 삼척그린파워 | C22: 2044000
A23: 북평 | C23: 1190000
A24: 신보령 | C24: 2038058
A25: 고성 | C25: 2080000
A26: 신서천 | C26: 1018000
A27: 강릉안인 | C27: 2080000

Sheet Ⅲ-3-다.내연력및복합화력 증감추이
B1: 시점 | C1: 2023
A2: 발전소별 | C2: 2021
A3: 합계 | C3: 34174802
A4: 도서 | C4: 616529
A5: 제주내연 | C5: 40000
A6: 제주GT | C6: 0
A7: 울릉도 | C7: 18500
A8: 조도 | C8: 3400
A9: 흑산도 | C9: 4000
A10: 추자도 | C10: 5500
A11: 남제주
A12: 거문도 | C12: 4500
A13: 덕적도 | C13: 2900
A14: 위도 | C14: 2850
A15: 한림복합 | C15: 105000
A16: 백령도 | C16: 15000
A17: 대청도 | C17: 3550
A18: 소청도 | C18: 2400
A19: 연평도 | C19: 7700
A20: 자월도 | C20: 1650
A21: 홍도 | C21: 2350
A22: 비양도 | C22: 240
A23: 덕우도 | C23: 390
A24: 여서도 | C24: 240
A25: 가파도 | C25: 450
A26: 신시도
A27: 비안도 | C27: 450
A28: 연도 | C28: 600
A29: 어청도 | C29: 1250
A30: 장자도
A31: 개야도 | C31: 1500
A32: 외연도 | C32: 750
A33: 삽시도 | C33: 1600
A34: 대모도
A35: 승봉도 | C35: 1950
A36: 풍도 | C36: 450
A37: 가의도 | C37: 240
A38: 가거도 | C38: 1800
A39: 여자도 | C39: 450
A40: 추도 | C40: 280
A41: 매물도 | C41: 450
A42: 어의도 | C42: 160
A43: 수우도 | C43: 160
A44: 장고도 | C44: 450
A45: 고대도 | C45: 400
A46: 문갑도 | C46: 240
A47: 성남도 | C47: 160
A48: 독거도 | C48: 160
A49: 호도 | C49: 600
A50: 녹도
A51: 낙월도 | C51: 750
A52: 송이도 | C52: 300
A53: 구자도 | C53: 240
A54: 슬도 | C54: 240
A55: 시산도 | C55: 750
A56: 득량도 | C56: 300
A57: 어룡도 | C57: 240
A58: 상화도 | C58: 240
A59: 손죽도 | C59: 300
A60: 왕등도 | C60: 240
A61: 울도 | C61: 240
A62: 초도 | C62: 750
A63: 평도 | C63: 240
A64: 화도 | C64: 240
A65: 소연평도 | C65: 600
A66: 외도 | C66: 220
A67: 영산도 | C67: 240
A68: 마라도 | C68: 700
A69: 제주복합 | C69: 228734
A70: 남제주복합 | C70: 146245
A71: 계통 | C71: 33558273
A72: 울산복합 | C72: 2071900
A73: 서인천복합 | C73: 1800000
A74: 신인천복합 | C74: 1800000
A75: 안양복합
A76: 분당복합 | C76: 922064
A77: 평택복합 | C77: 868500
A78: 부천복합
A79: 일산복합 | C79: 900000
A80: 포스코복합 | C80: 3176000
A81: 보령복합 | C81: 1350000
A82: 당진복합 | C82: 2261750
A83: 부산복합 | C83: 1800000
A84: 율촌복합 | C84: 1389700
A85: 인천복합 | C85: 1462447
A86: 광양복합 | C86: 989200
A87: 대산복합 | C87: 465800
A88: 군산복합 | C88: 718400
A89: 영월복합 | C89: 848000
A90: 오성복합 | C90: 769830
A91: 안동복합 | C91: 361600
A92: 포천복합 | C92: 1450000
A93: 안산복합 | C93: 751200
A94: 동두천복합 | C94: 1716800
A95: 파주문산복합 | C95: 1695200
A96: 포천천연복합 | C96: 874200
A97: 부산정관에너지 | C97: 45836
A98: 영남파워 | C98: 442800
A99: 서울복합 | C99: 738346
A100: 신평택복합 | C100: 863300
A101: 여주복합 | C101: 1025400

Sheet Ⅲ-3-라.원자력 증감추이
B1: 시점 | C1: 2023
A2: 발전소별 | C2: 2022
A3: 합계 | C3: 24650000
A4: 고리 | C4: 7350000
A5: 고리#1 | C5: 0
A6: 고리#2 | C6: 650000
A7: 고리#3 | C7: 950000
A8: 고리#4 | C8: 950000
A9: 신고리#1 | C9: 1000000
A10: 신고리#2 | C10: 1000000
A11: 새울#1 | C11: 1400000
A12: 새울#2 | C12: 1400000
A13: 월성 | C13: 4100000
A14: 월성#1 | C14: 0
A15: 월성#2 | C15: 700000
A16: 월성#3 | C16: 700000
A17: 월성#4 | C17: 700000
A18: 신월성#1 | C18: 1000000
A19: 신월성#2 | C19: 1000000
A20: 한빛 | C20: 5900000
A21: 한빛#1 | C21: 950000
A22: 한빛#2 | C22: 950000
A23: 한빛#3 | C23: 1000000
A24: 한빛#4 | C24: 1000000
A25: 한빛#5 | C25: 1000000
A26: 한빛#6 | C26: 1000000
A27: 한울 | C27: 5900000
A28: 한울#1 | C28: 950000
A29: 한울#2 | C29: 950000
A30: 한울#3 | C30: 1000000
A31: 한울#4 | C31: 1000000
A32: 한울#5 | C32: 1000000
A33: 한울#6 | C33: 1000000
A34: 신한울 | C34: 1400000
A35: 신한울#1 | C35: 1400000

Sheet Ⅵ-1.발전실적 종합
B1: 시점 | C1: 2023
A2: 실적현황별 | C2: 2022
A3: 설비용량(피크기준) | C3: 144381
A4: 설비용량(연말기준) | C4: 144420.908
A5: 공급능력 | C5: 105213
A6: 최대전력 | C6: 91556
A7: 예비전력 | C7: 13657
A8: 공급예비율 | C8: 14.9
A9: 평균전력 | C9: 81240
A10: 발전량 | C10: 588047
A11: 원자력 | C11: 180494
A12: 화력 | C12: 348423
A13: 양수 | C13: 3784
A14: 신재생 | C14: 54173
A15: 기타 | C15: 1173
A16: 연료사용량
A17: 유연탄 | C17: 59379
A18: 무연탄 | C18: 914
A19: 유류 | C19: 294
A20: 경유 | C20: 280
A21: LNG | C21: 10761
A22: 열효율
A23: 발전단 | C23: 41.36
A24: 송전단 | C24: 39.5
A25: 소내전력률 | C25: 3.57
A26: 주파수유지율 | C26: 99.99
A27: 고장정지
A28: 수·화력 | C28: 0.1674208145
A29: 수·화력(민자포함) | C29: 0.4289340102
A30: 원자력 | C30: 0.04

Sheet Ⅵ-2.설비별 발전량
B1: 시점 | C1: 2023
A2: 설비형식별 | C2: 2022
A3: 한전및발전자회사 | C3: 391571
A4: 원자력 | C4: 180494
A5: 기력 | C5: =SUM(C6:C9) -> 151733
A6: 유연탄 | C6: 148979
A7: 무연탄 | C7: 1876
A8: 중유 | C8: 0
A9: LNG | C9: 878
A10: 복합화력 | C10: 41270
A11: 내연력 | C11: 390
A12: 집단에너지 | C12: 4679
A13: 양수 | C13: 3784
A14: 신재생 | C14: 9157
A15: 기타 | C15: 64
A16: 민간 | C16: 196476
A17: 기력(유연탄) | C17: 28409
A18: 복합화력 | C18: 77531
A19: 집단에너지 | C19: 44411
A20: 신재생 | C20: 45016
A21: 기타 | C21: 1109
A22: 발전량 | C22: 588047
A23: 원자력 | C23: 180494
A24: 화력 | C24: 348423
A25: 양수 | C25: 3784
A26: 신재생 | C26: 54173
A27: 기타 | C27: 1173

Sheet Ⅵ-3.에너지원별 발전량
B1: 시점 | C1: 2023
A2: 에너지원별 | C2: 2022
A3: 합계 | C3: 594400.3648
A4: 원자력 | C4: 180494
A5: 화력 | C5: 344163
A6: 석탄 | C6: 184927
A7: 유연탄 | C7: 183038
A8: 무연탄 | C8: 1889
A9: 유류 | C9: 1487
A10: LNG | C10: 157749
A11: 양수 | C11: 3784
A12: 신재생 및 기타 | C12: 59606

Sheet Ⅵ-4.연료사용량
B1: 시점 | C1: 2023
A2: 연료별 | C2: 2022
A3: 유연탄 | C3: 59379
A4: 무연탄 | C4: 914
A5: B·C유 | C5: 15
A6: 기타중유 | C6: 0
A7: 경유 | C7: 280
A8: LNG | C8: 10761

Sheet Ⅵ-5.열효율
B1: 시점 | C1: 2023
A2: 연료별 | C2: 2022
A3: 합계 | C3: 41.36
A4: 한전및발전자회사 | C4: 40.31
A5: 기력
A6: 유연탄 | C6: 38.8
A7: 무연탄 | C7: 34.14
A8: 중유 | C8: 0
A9: LNG | C9: 35.39
A10: 복합화력 | C10: 46.48
A11: 내연력 | C11: 39.16514138
A12: 타사 | C12: 37.21

Sheet Ⅵ-6.이용률
B1: 시점 | C1: 2023
A2: 에너지원별 | C2: 2022
A3: 합계 | C3: 46.5
A4: 한전및발전자회사 | C4: 53.7
A5: 원자력 | C5: 81.8
A6: 화력 | C6: 44.25097456
A7: 기력
A8: 유연탄 | C8: 52.9
A9: 무연탄 | C9: 53.5
A10: 중유
A11: LNG | C11: 29.3
A12: 복합화력 | C12: 29.2
A13: 내연력 | C13: 32.6
A14: 집단에너지 | C14: 60.6
A15: 양수 및 수력 | C15: 10.85926775
A16: 기타발전회사 | C16: 36.4

Sheet Ⅵ-7.발전소내 소비전력률
B1: 시점 | C1: 2023
A2: 에너지원별 | C2: 2022
A3: 합계 | C3: 3.57
A4: 한전및발전자회사 | C4: 4.87
A5: 원자력 | C5: 4.88
A6: 화력 | C6: 4.874490084
A7: 기력 | C7: 5.62
A8: 유연탄 | C8: 5.57
A9: 무연탄 | C9: 10.39
A10: 중유 | C10: 0
A11: LNG | C11: 2.37
A12: 복합화력 | C12: 2.37
A13: 내연력 | C13: 6.06
A14: 집단에너지 | C14: 2.65
A15: 양수 및 수력 | C15: 0.3400142883
A16: 기타발전회사 | C16: 0.9830990769

Sheet Ⅶ-1.연도별 전력수급실적
B1: 시점 | C1: 2023
A2: 실적구분별 | C2: 2022
A3: 경제성장률 | C3: 1.4
A4: 설비용량(연말) | C4: 144420.908
A5: 설비용량(연말)-성장률 | C5: 4.506396761
A6: 최대전력 | C6: 91556
A7: 최대전력-성장률 | C7: -3.124570147
A8: 설비예비율 | C8: 57.69692866
A9: 공급예비율 | C9: 14.9
A10: 총발전량 | C10: 588047
A11: 총발전량-성장률 | C11: -1.068869599
A12: 이용률 | C12: 49.10021593
A13: 발전소내 소비전력률 | C13: 3.714872964
A14: 발전소내 소비전력량 | C14: 20976
A15: 판매전력량 | C15: 545966
A16: 판매전력량-수요성장률 | C16: 0.36
A17: 송전전력량(양수제외) | C17: 561447
A18: 송배전손실률 | C18: 3.53
A19: 주택용판매전력량 | C19: 82348
A20: 일반용판매전력량 | C20: 130844
A21: 교육용판매전력량 | C21: 9232
A22: 산업용판매전력량 | C22: 290555
A23: 농사용판매전력량 | C23: 20763
A24: 가로등판매전력량 | C24: 3399
A25: 심야판매전력량 | C25: 8825
A26: 평균전력 | C26: 67129
A27: 부하율 | C27: 72
A28: 열효율(발전단Gross) | C28: 41.36
A29: 인구1인당전력소비량 | C29: 10637

Sheet Ⅶ-2.최대전력 발생일시
B1: 시점 | C1: 2023
A2: 항목 | C2: 2022
A3: 월 (월) | C3: 12
A4: 일 (일) | C4: 21
A5: 시 (시) | C5: 10
A6: 최대전력 (천kW) | C6: 91556
A7: 최고/최저기온 (℃) | C7: -9.4
A8: 불쾌지수 (%)
